[Event "Titled Tuesday Blitz October 18 Late 2022"]
[White "Jean Louis, Marckens"]
[Black "Adewumi, Tanitoluwa"]
[WhiteFideId "11900270"]
[BlackFideId "30966396"]
[WhiteElo "2030"]
[BlackElo "2534"]
[Result "1-0"]
[Round "07"]
[TimeControl "180+1"]
[Date "2022.10.19"]
[WhiteClock "0:00:59"]
[BlackClock "0:00:02"]

1. d4 {[%clk 0:03:00]}  Nf6 {[%clk 0:02:57]} 2. Nf3 {[%clk 0:03:01]}  e6 {[%clk 0:02:48]} 3. c4 {[%clk 0:03:00]}  b6 {[%clk 0:02:49]} 4. Nc3 {[%clk 0:03:00]}  Bb7 {[%clk 0:02:48]} 5. g3 {[%clk 0:03:00]}  Bb4 {[%clk 0:02:45]} 6. Bg2 {[%clk 0:03:00]}  O-O {[%clk 0:02:42]} 7. O-O {[%clk 0:02:59]}  Bxc3 {[%clk 0:02:37]} 8. bxc3 {[%clk 0:02:59]}  d6 {[%clk 0:02:38]} 9. Bg5 {[%clk 0:02:54]}  h6 {[%clk 0:02:37]} 10. Bxf6 {[%clk 0:02:54]}  Qxf6 {[%clk 0:02:37]} 11. Nd2 {[%clk 0:02:54]}  Bxg2 {[%clk 0:02:37]} 12. Kxg2 {[%clk 0:02:55]}  c5 {[%clk 0:02:37]} 13. e3 {[%clk 0:02:51]}  Nc6 {[%clk 0:02:36]} 14. Ne4 {[%clk 0:02:45]}  Qe7 {[%clk 0:02:36]} 15. d5 {[%clk 0:02:39]}  Na5 {[%clk 0:02:29]} 16. Qd3 {[%clk 0:02:35]}  Rfe8 {[%clk 0:02:25]} 17. Nd2 {[%clk 0:02:34]}  Rad8 {[%clk 0:02:21]} 18. e4 {[%clk 0:02:34]}  exd5 {[%clk 0:02:21]} 19. cxd5 {[%clk 0:02:33]}  f5 {[%clk 0:02:20]} 20. Rae1 {[%clk 0:02:32]}  fxe4 {[%clk 0:02:20]} 21. Rxe4 {[%clk 0:02:31]}  Qf7 {[%clk 0:02:19]} 22. Rfe1 {[%clk 0:02:31]}  Rxe4 {[%clk 0:02:19]} 23. Qxe4 {[%clk 0:02:31]}  Kf8 {[%clk 0:02:18]} 24. Qd3 {[%clk 0:02:12]}  Re8 {[%clk 0:02:16]} 25. Rxe8+ {[%clk 0:02:11]}  Kxe8 {[%clk 0:02:16]} 26. Ne4 {[%clk 0:02:09]}  Kd7 {[%clk 0:01:56]} 27. Qa6 {[%clk 0:01:59]}  Qxd5 {[%clk 0:01:53]} 28. Qxa7+ {[%clk 0:01:59]}  Ke6 {[%clk 0:01:50]} 29. f3 {[%clk 0:01:56]}  Qxa2+ {[%clk 0:01:51]} 30. Kh3 {[%clk 0:01:56]}  Qe2 {[%clk 0:01:36]} 31. Qxb6 {[%clk 0:01:50]}  Qf1+ {[%clk 0:01:27]} 32. Kg4 {[%clk 0:01:46]}  h5+ {[%clk 0:01:25]} 33. Kh4 {[%clk 0:01:39]}  Nc4 {[%clk 0:01:16]} 34. Ng5+ {[%clk 0:01:24]}  Ke5 {[%clk 0:00:33]} 35. Qc6 {[%clk 0:01:18]}  d5 {[%clk 0:00:12]} 36. Qe8+ {[%clk 0:01:11]}  Kd6 {[%clk 0:00:10]} 37. Qe6+ {[%clk 0:01:08]}  Kc7 {[%clk 0:00:11]} 38. Qxd5 {[%clk 0:01:08]}  Kb6 {[%clk 0:00:06]} 39. Ne6 {[%clk 0:01:04]}  g5+ {[%clk 0:00:04]} 40. Qxg5 {[%clk 0:01:00]}  Qxf3 {[%clk 0:00:01]} 41. Qxc5+ {[%clk 0:01:00]}  Kb7 {[%clk 0:00:01]} 42. Qxc4 {[%clk 0:00:59]}  Qf6+ {[%clk 0:00:02]} 43. Ng5 {[%clk 0:00:59]}  Qf5 {[%clk 0:00:02]} 44. Qe4+ {[%clk 0:00:57]}  Qxe4+ {[%clk 0:00:02]} 45. Nxe4 {[%clk 0:00:58]}  Kc6 {[%clk 0:00:02]} 46. Kxh5 {[%clk 0:00:59]} 1-0


[Site "https://www.chess.com"]

[Event "Titled Tuesday Blitz October 18 Late 2022"]
[White "Kravtsiv, Martyn"]
[Black "Dilanyan, Grigor"]
[WhiteFideId "14113147"]
[BlackFideId "13303570"]
[WhiteElo "2694"]
[BlackElo "2264"]
[Result "1-0"]
[Round "07"]
[TimeControl "180+1"]
[Date "2022.10.18"]
[WhiteClock "0:02:00"]
[BlackClock "0:00:40"]

1. b3 {[%clk 0:03:00]}  e5 {[%clk 0:02:58]} 2. Bb2 {[%clk 0:03:01]}  Nc6 {[%clk 0:02:58]} 3. e3 {[%clk 0:03:01]}  a6 {[%clk 0:02:56]} 4. c4 {[%clk 0:02:58]}  Nf6 {[%clk 0:02:53]} 5. d3 {[%clk 0:02:57]}  d5 {[%clk 0:02:49]} 6. cxd5 {[%clk 0:02:56]}  Nxd5 {[%clk 0:02:49]} 7. a3 {[%clk 0:02:57]}  Be6 {[%clk 0:02:49]} 8. Nf3 {[%clk 0:02:56]}  f6 {[%clk 0:02:42]} 9. Nbd2 {[%clk 0:02:57]}  Be7 {[%clk 0:02:41]} 10. Be2 {[%clk 0:02:57]}  O-O {[%clk 0:02:41]} 11. O-O {[%clk 0:02:57]}  Qe8 {[%clk 0:02:41]} 12. Qc2 {[%clk 0:02:54]}  Qf7 {[%clk 0:02:41]} 13. Rac1 {[%clk 0:02:52]}  Rac8 {[%clk 0:02:40]} 14. b4 {[%clk 0:02:50]}  Na7 {[%clk 0:02:35]} 15. Ne4 {[%clk 0:02:49]}  b6 {[%clk 0:02:31]} 16. d4 {[%clk 0:02:48]}  c5 {[%clk 0:02:08]} 17. bxc5 {[%clk 0:02:47]}  bxc5 {[%clk 0:02:08]} 18. dxe5 {[%clk 0:02:46]}  Nb5 {[%clk 0:01:49]} 19. exf6 {[%clk 0:02:43]}  gxf6 {[%clk 0:01:49]} 20. Bc4 {[%clk 0:02:43]}  Rfd8 {[%clk 0:01:40]} 21. Rfd1 {[%clk 0:02:19]}  Qg6 {[%clk 0:01:39]} 22. Nxf6+ {[%clk 0:02:10]}  Bxf6 {[%clk 0:01:31]} 23. Qxg6+ {[%clk 0:02:10]}  hxg6 {[%clk 0:01:31]} 24. Bxf6 {[%clk 0:02:11]}  Rd6 {[%clk 0:01:16]} 25. Be5 {[%clk 0:02:08]}  Rd7 {[%clk 0:01:16]} 26. Ng5 {[%clk 0:02:07]}  Nxa3 {[%clk 0:01:07]} 27. Ba2 {[%clk 0:02:06]}  c4 {[%clk 0:00:59]} 28. Nxe6 {[%clk 0:02:05]}  Re8 {[%clk 0:00:59]} 29. Bb2 {[%clk 0:02:05]}  Nb4 {[%clk 0:00:39]} 30. Rxd7 {[%clk 0:02:01]}  Nxa2 {[%clk 0:00:39]} 31. Rg7+ {[%clk 0:02:00]}  Kh8 {[%clk 0:00:39]} 32. Re7+ {[%clk 0:02:01]}  c3 {[%clk 0:00:40]} 33. Rxe8+ {[%clk 0:02:01]}  Kh7 {[%clk 0:00:40]} 34. Bxa3 {[%clk 0:02:00]} 1-0


[Site "https://www.chess.com"]

[Event "Titled Tuesday Blitz October 18 Late 2022"]
[White "Lorenzo De La Riva, Lazaro"]
[Black "Tomaszewski, Kacper"]
[WhiteFideId "2268809"]
[BlackFideId "1127373"]
[WhiteElo "2325"]
[BlackElo "2211"]
[Result "1-0"]
[Round "07"]
[TimeControl "180+1"]
[Date "2022.10.19"]
[WhiteClock "0:01:18"]
[BlackClock "0:00:01"]

1. b3 {[%clk 0:02:57]}  e5 {[%clk 0:02:58]} 2. Bb2 {[%clk 0:02:58]}  Nc6 {[%clk 0:02:58]} 3. g3 {[%clk 0:02:59]}  Nge7 {[%clk 0:02:57]} 4. Bg2 {[%clk 0:02:59]}  g6 {[%clk 0:02:57]} 5. c4 {[%clk 0:03:00]}  Bg7 {[%clk 0:02:57]} 6. h4 {[%clk 0:03:00]}  h6 {[%clk 0:02:57]} 7. Na3 {[%clk 0:03:01]}  d5 {[%clk 0:02:54]} 8. Nc2 {[%clk 0:03:01]}  d4 {[%clk 0:02:53]} 9. d3 {[%clk 0:03:02]}  O-O {[%clk 0:02:51]} 10. b4 {[%clk 0:03:02]}  f5 {[%clk 0:02:49]} 11. b5 {[%clk 0:03:02]}  Nb8 {[%clk 0:02:48]} 12. h5 {[%clk 0:03:03]}  g5 {[%clk 0:02:48]} 13. Ba3 {[%clk 0:03:04]}  Nd7 {[%clk 0:02:44]} 14. Nf3 {[%clk 0:03:04]}  g4 {[%clk 0:02:41]} 15. Nh4 {[%clk 0:03:03]}  Rf7 {[%clk 0:02:38]} 16. Bxe7 {[%clk 0:03:00]}  Rxe7 {[%clk 0:02:38]} 17. Nxf5 {[%clk 0:02:57]}  Re8 {[%clk 0:02:35]} 18. Bd5+ {[%clk 0:02:56]}  Kh8 {[%clk 0:02:32]} 19. Nxg7 {[%clk 0:02:56]}  Kxg7 {[%clk 0:02:33]} 20. Be4 {[%clk 0:02:51]}  Nf6 {[%clk 0:02:33]} 21. Bg6 {[%clk 0:02:52]}  Rf8 {[%clk 0:02:30]} 22. e4 {[%clk 0:02:52]}  a6 {[%clk 0:02:17]} 23. a4 {[%clk 0:02:43]}  axb5 {[%clk 0:02:12]} 24. axb5 {[%clk 0:02:44]}  Be6 {[%clk 0:02:09]} 25. Rxa8 {[%clk 0:02:20]}  Qxa8 {[%clk 0:02:10]} 26. Qa1 {[%clk 0:02:19]}  Qxa1+ {[%clk 0:02:06]} 27. Nxa1 {[%clk 0:02:19]}  Ra8 {[%clk 0:02:06]} 28. Nc2 {[%clk 0:02:17]}  Bxc4 {[%clk 0:01:58]} 29. dxc4 {[%clk 0:02:15]}  d3 {[%clk 0:01:50]} 30. Ne3 {[%clk 0:02:15]}  Nd7 {[%clk 0:01:19]} 31. O-O {[%clk 0:02:08]}  Nc5 {[%clk 0:01:16]} 32. Nxg4 {[%clk 0:02:06]}  Ra2 {[%clk 0:01:07]} 33. Rd1 {[%clk 0:02:01]}  d2 {[%clk 0:01:04]} 34. Ne3 {[%clk 0:01:58]}  Na4 {[%clk 0:00:53]} 35. Nf1 {[%clk 0:01:55]}  Rc2 {[%clk 0:00:45]} 36. Rxd2 {[%clk 0:01:55]}  Rxc4 {[%clk 0:00:45]} 37. Rd7+ {[%clk 0:01:55]}  Kf6 {[%clk 0:00:45]} 38. Rh7 {[%clk 0:01:53]}  Kg5 {[%clk 0:00:45]} 39. Nh2 {[%clk 0:01:50]}  Nc3 {[%clk 0:00:29]} 40. Rf7 {[%clk 0:01:50]}  Ne2+ {[%clk 0:00:29]} 41. Kg2 {[%clk 0:01:49]}  Nd4 {[%clk 0:00:29]} 42. Kh3 {[%clk 0:01:31]}  Rc3 {[%clk 0:00:18]} 43. f3 {[%clk 0:01:29]}  c6 {[%clk 0:00:13]} 44. b6 {[%clk 0:01:28]}  c5 {[%clk 0:00:12]} 45. Rxb7 {[%clk 0:01:27]}  c4 {[%clk 0:00:13]} 46. Rf7 {[%clk 0:01:25]}  Rb3 {[%clk 0:00:11]} 47. b7 {[%clk 0:01:23]}  c3 {[%clk 0:00:01]} 48. b8=Q {[%clk 0:01:23]}  c2 {[%clk 0:00:01]} 49. Qxe5+ {[%clk 0:01:18]} 1-0


[Site "https://www.chess.com"]

[Event "Titled Tuesday Blitz October 18 Late 2022"]
[White "Machidon, Cristi"]
[Black "Yurtseven, Melih"]
[WhiteFideId "13904590"]
[BlackFideId "6312160"]
[WhiteElo "2312"]
[BlackElo "2218"]
[Result "0-1"]
[Round "07"]
[TimeControl "180+1"]
[Date "2022.10.19"]
[WhiteClock "0:00:05"]
[BlackClock "0:00:52"]

1. Nf3 {[%clk 0:03:00]}  c5 {[%clk 0:02:57]} 2. g3 {[%clk 0:03:00]}  Nc6 {[%clk 0:02:57]} 3. Bg2 {[%clk 0:03:00]}  e5 {[%clk 0:02:55]} 4. d3 {[%clk 0:03:00]}  d5 {[%clk 0:02:54]} 5. O-O {[%clk 0:03:00]}  Bd6 {[%clk 0:02:55]} 6. e4 {[%clk 0:02:59]}  d4 {[%clk 0:02:55]} 7. Na3 {[%clk 0:02:58]}  Nge7 {[%clk 0:02:53]} 8. Nc4 {[%clk 0:02:59]}  Bc7 {[%clk 0:02:53]} 9. a4 {[%clk 0:02:59]}  h6 {[%clk 0:02:44]} 10. c3 {[%clk 0:02:55]}  g5 {[%clk 0:02:37]} 11. cxd4 {[%clk 0:02:54]}  exd4 {[%clk 0:02:32]} 12. Bd2 {[%clk 0:02:49]}  Be6 {[%clk 0:02:32]} 13. Rc1 {[%clk 0:02:48]}  Qd7 {[%clk 0:02:29]} 14. Re1 {[%clk 0:02:36]}  g4 {[%clk 0:02:08]} 15. Nh4 {[%clk 0:02:31]}  b6 {[%clk 0:02:06]} 16. Nf5 {[%clk 0:02:21]}  h5 {[%clk 0:01:56]} 17. Ng7+ {[%clk 0:02:03]}  Kf8 {[%clk 0:01:55]} 18. Nxe6+ {[%clk 0:02:03]}  Qxe6 {[%clk 0:01:53]} 19. e5 {[%clk 0:02:03]}  Rd8 {[%clk 0:01:45]} 20. f4 {[%clk 0:01:50]}  Nf5 {[%clk 0:01:35]} 21. Be4 {[%clk 0:01:43]}  Nce7 {[%clk 0:01:33]} 22. Qe2 {[%clk 0:01:42]}  h4 {[%clk 0:01:25]} 23. Kg2 {[%clk 0:01:29]}  hxg3 {[%clk 0:01:22]} 24. hxg3 {[%clk 0:01:29]}  Rh3 {[%clk 0:01:23]} 25. Rg1 {[%clk 0:00:37]}  Nxg3 {[%clk 0:01:11]} 26. Qd1 {[%clk 0:00:13]}  Nxe4 {[%clk 0:00:59]} 27. dxe4 {[%clk 0:00:14]}  Qg6 {[%clk 0:00:59]} 28. Qe2 {[%clk 0:00:08]}  d3 {[%clk 0:00:54]} 29. Qf2 {[%clk 0:00:05]}  Qxe4+ {[%clk 0:00:52]} 0-1


[Site "https://www.chess.com"]

[Event "Titled Tuesday Blitz October 18 Late 2022"]
[White "Maksimovic, Bojan"]
[Black "Matinian, Nikita"]
[WhiteFideId "14408120"]
[BlackFideId "24129100"]
[WhiteElo "2447"]
[BlackElo "2422"]
[Result "1-0"]
[Round "07"]
[TimeControl "180+1"]
[Date "2022.10.18"]
[WhiteClock "0:00:02"]
[BlackClock "0:00:01"]

1. e4 {[%clk 0:03:00]}  e5 {[%clk 0:02:59]} 2. Nf3 {[%clk 0:03:01]}  Nc6 {[%clk 0:02:59]} 3. Bb5 {[%clk 0:03:01]}  a6 {[%clk 0:03:00]} 4. Ba4 {[%clk 0:03:01]}  Bc5 {[%clk 0:03:00]} 5. c3 {[%clk 0:02:58]}  Nge7 {[%clk 0:02:53]} 6. d4 {[%clk 0:02:58]}  exd4 {[%clk 0:02:53]} 7. cxd4 {[%clk 0:02:59]}  Bb4+ {[%clk 0:02:53]} 8. Bd2 {[%clk 0:02:58]}  Bxd2+ {[%clk 0:02:52]} 9. Nbxd2 {[%clk 0:02:51]}  d5 {[%clk 0:02:53]} 10. e5 {[%clk 0:02:50]}  O-O {[%clk 0:02:46]} 11. O-O {[%clk 0:02:50]}  a5 {[%clk 0:02:29]} 12. a3 {[%clk 0:02:39]}  Bf5 {[%clk 0:02:17]} 13. Re1 {[%clk 0:02:34]}  Ng6 {[%clk 0:02:11]} 14. Bxc6 {[%clk 0:02:32]}  bxc6 {[%clk 0:02:11]} 15. Nb3 {[%clk 0:02:00]}  f6 {[%clk 0:01:59]} 16. Nc5 {[%clk 0:01:57]}  Bg4 {[%clk 0:01:53]} 17. e6 {[%clk 0:01:51]}  Re8 {[%clk 0:01:51]} 18. h3 {[%clk 0:01:50]}  Bxf3 {[%clk 0:01:51]} 19. Qxf3 {[%clk 0:01:50]}  Nf8 {[%clk 0:01:46]} 20. Qg4 {[%clk 0:01:43]}  Re7 {[%clk 0:01:45]} 21. Re3 {[%clk 0:01:42]}  Rb8 {[%clk 0:01:42]} 22. b3 {[%clk 0:01:42]}  Qe8 {[%clk 0:01:37]} 23. Rae1 {[%clk 0:01:42]}  Qg6 {[%clk 0:01:35]} 24. Qf4 {[%clk 0:01:42]}  Rbe8 {[%clk 0:01:33]} 25. Rg3 {[%clk 0:01:34]}  Qc2 {[%clk 0:01:07]} 26. Qxf6 {[%clk 0:01:34]}  Qb2 {[%clk 0:01:05]} 27. Qf4 {[%clk 0:00:43]}  Nxe6 {[%clk 0:00:50]} 28. Nxe6 {[%clk 0:00:40]}  Rxe6 {[%clk 0:00:51]} 29. Rxe6 {[%clk 0:00:38]}  Rxe6 {[%clk 0:00:52]} 30. Re3 {[%clk 0:00:38]}  Rxe3 {[%clk 0:00:45]} 31. Qxe3 {[%clk 0:00:37]}  h6 {[%clk 0:00:28]} 32. a4 {[%clk 0:00:32]}  c5 {[%clk 0:00:21]} 33. Qe6+ {[%clk 0:00:28]}  Kh8 {[%clk 0:00:20]} 34. Qc8+ {[%clk 0:00:27]}  Kh7 {[%clk 0:00:20]} 35. Qf5+ {[%clk 0:00:28]}  Kh8 {[%clk 0:00:20]} 36. dxc5 {[%clk 0:00:21]}  Qc1+ {[%clk 0:00:20]} 37. Kh2 {[%clk 0:00:21]}  Qxc5 {[%clk 0:00:21]} 38. h4 {[%clk 0:00:12]}  Qd6+ {[%clk 0:00:20]} 39. g3 {[%clk 0:00:12]}  d4 {[%clk 0:00:21]} 40. Qd3 {[%clk 0:00:12]}  c5 {[%clk 0:00:20]} 41. Kg2 {[%clk 0:00:13]}  Qd5+ {[%clk 0:00:20]} 42. Kf1 {[%clk 0:00:13]}  Kg8 {[%clk 0:00:19]} 43. Ke2 {[%clk 0:00:14]}  Kf7 {[%clk 0:00:19]} 44. Kd2 {[%clk 0:00:12]}  Qe5 {[%clk 0:00:11]} 45. Qb5 {[%clk 0:00:11]}  Qf5 {[%clk 0:00:06]} 46. Qb7+ {[%clk 0:00:08]}  Kg6 {[%clk 0:00:06]} 47. Qc6+ {[%clk 0:00:08]}  Kh5 {[%clk 0:00:07]} 48. f3 {[%clk 0:00:08]}  Qe5 {[%clk 0:00:03]} 49. Kd1 {[%clk 0:00:02]}  g6 {[%clk 0:00:02]} 50. f4 {[%clk 0:00:01]}  Qe3 {[%clk 0:00:01]} 51. f5 {[%clk 0:00:01]}  gxf5 {[%clk 0:00:01]} 52. Qxc5 {[%clk 0:00:01]}  Kg4 {[%clk 0:00:01]} 53. Qxa5 {[%clk 0:00:01]}  Qd3+ {[%clk 0:00:01]} 54. Qd2 {[%clk 0:00:02]} 1-0


[Site "https://www.chess.com"]

[Event "Titled Tuesday Blitz October 18 Late 2022"]
[White "Malka, Samuel"]
[Black "Prydun, Andriy"]
[WhiteFideId "20643675"]
[BlackFideId "14145898"]
[WhiteElo "2460"]
[BlackElo "2163"]
[Result "0-1"]
[Round "07"]
[TimeControl "180+1"]
[Date "2022.10.19"]
[WhiteClock "0:00:10"]
[BlackClock "0:00:39"]

1. d4 {[%clk 0:03:00]}  Nf6 {[%clk 0:02:59]} 2. c4 {[%clk 0:03:01]}  c5 {[%clk 0:02:59]} 3. d5 {[%clk 0:03:01]}  e5 {[%clk 0:02:59]} 4. Nc3 {[%clk 0:03:00]}  d6 {[%clk 0:03:00]} 5. g3 {[%clk 0:03:00]}  g6 {[%clk 0:02:59]} 6. Bg2 {[%clk 0:02:59]}  Bg7 {[%clk 0:02:59]} 7. h3 {[%clk 0:02:47]}  a6 {[%clk 0:02:57]} 8. a4 {[%clk 0:02:46]}  b6 {[%clk 0:02:55]} 9. Bg5 {[%clk 0:02:41]}  Ra7 {[%clk 0:02:52]} 10. Qd2 {[%clk 0:02:39]}  h6 {[%clk 0:02:46]} 11. Be3 {[%clk 0:02:39]}  Nbd7 {[%clk 0:02:43]} 12. Qc2 {[%clk 0:02:27]}  O-O {[%clk 0:02:21]} 13. Nf3 {[%clk 0:02:25]}  Nh7 {[%clk 0:02:20]} 14. Qc1 {[%clk 0:02:14]}  g5 {[%clk 0:02:19]} 15. h4 {[%clk 0:02:11]}  g4 {[%clk 0:02:19]} 16. Nh2 {[%clk 0:02:12]}  h5 {[%clk 0:02:18]} 17. f3 {[%clk 0:02:08]}  f5 {[%clk 0:02:18]} 18. fxg4 {[%clk 0:01:58]}  hxg4 {[%clk 0:02:16]} 19. Bh6 {[%clk 0:01:57]}  Ndf6 {[%clk 0:02:15]} 20. Bxg7 {[%clk 0:01:56]}  Kxg7 {[%clk 0:02:16]} 21. e4 {[%clk 0:01:54]}  f4 {[%clk 0:02:09]} 22. gxf4 {[%clk 0:01:54]}  Nh5 {[%clk 0:02:09]} 23. O-O {[%clk 0:01:39]}  exf4 {[%clk 0:02:06]} 24. e5 {[%clk 0:01:30]}  f3 {[%clk 0:02:05]} 25. Bh1 {[%clk 0:01:31]}  Qxh4 {[%clk 0:02:02]} 26. Ne4 {[%clk 0:01:24]}  Raf7 {[%clk 0:01:32]} 27. Qc2 {[%clk 0:00:41]}  Bf5 {[%clk 0:01:16]} 28. Qf2 {[%clk 0:00:20]}  g3 {[%clk 0:00:58]} 29. Nxg3 {[%clk 0:00:19]}  Nxg3 {[%clk 0:00:55]} 30. e6 {[%clk 0:00:19]}  Rf6 {[%clk 0:00:53]} 31. Bxf3 {[%clk 0:00:13]}  Rg6 {[%clk 0:00:50]} 32. Bg2 {[%clk 0:00:12]}  Be4 {[%clk 0:00:46]} 33. Qxf8+ {[%clk 0:00:11]}  Nxf8 {[%clk 0:00:45]} 34. e7 {[%clk 0:00:12]}  Qxe7 {[%clk 0:00:42]} 35. Rae1 {[%clk 0:00:11]}  Nxf1 {[%clk 0:00:40]} 36. Rxe4 {[%clk 0:00:10]}  Qxe4 {[%clk 0:00:39]} 0-1


[Site "https://www.chess.com"]

[Event "Titled Tuesday Blitz October 18 Late 2022"]
[White "Martin Carmona, Gaston Manuel"]
[Black "Aghasiyev, Kamal"]
[WhiteFideId "22284567"]
[BlackFideId "13402854"]
[WhiteElo "2235"]
[BlackElo "2341"]
[Result "1-0"]
[Round "07"]
[TimeControl "180+1"]
[Date "2022.10.19"]
[WhiteClock "0:02:00"]
[BlackClock "0:00:58"]

1. d4 {[%clk 0:03:00]}  d5 {[%clk 0:02:58]} 2. c4 {[%clk 0:02:59]}  e6 {[%clk 0:02:58]} 3. Nc3 {[%clk 0:02:59]}  Nf6 {[%clk 0:02:58]} 4. cxd5 {[%clk 0:02:59]}  exd5 {[%clk 0:02:57]} 5. Bg5 {[%clk 0:03:00]}  c6 {[%clk 0:02:57]} 6. e3 {[%clk 0:03:00]}  Nbd7 {[%clk 0:02:58]} 7. Bd3 {[%clk 0:03:01]}  Be7 {[%clk 0:02:58]} 8. Qc2 {[%clk 0:03:00]}  h6 {[%clk 0:02:58]} 9. Bf4 {[%clk 0:02:59]}  Nh5 {[%clk 0:02:54]} 10. Be5 {[%clk 0:02:59]}  Nxe5 {[%clk 0:02:49]} 11. dxe5 {[%clk 0:03:00]}  O-O {[%clk 0:02:38]} 12. Nf3 {[%clk 0:02:48]}  g6 {[%clk 0:02:35]} 13. O-O-O {[%clk 0:02:40]}  Ng7 {[%clk 0:02:24]} 14. h3 {[%clk 0:02:38]}  Qa5 {[%clk 0:02:21]} 15. Kb1 {[%clk 0:02:37]}  Be6 {[%clk 0:02:15]} 16. Nd4 {[%clk 0:02:37]}  c5 {[%clk 0:01:57]} 17. Nxe6 {[%clk 0:02:37]}  fxe6 {[%clk 0:01:58]} 18. Bxg6 {[%clk 0:02:33]}  b5 {[%clk 0:01:52]} 19. Bh7+ {[%clk 0:02:16]}  Kh8 {[%clk 0:01:52]} 20. Qg6 {[%clk 0:02:17]}  Rf5 {[%clk 0:01:08]} 21. g4 {[%clk 0:02:11]}  Rxe5 {[%clk 0:01:02]} 22. f4 {[%clk 0:02:00]}  Rxe3 {[%clk 0:00:58]} 23. Qxh6 {[%clk 0:02:00]} 1-0


[Site "https://www.chess.com"]

[Event "Titled Tuesday Blitz October 18 Late 2022"]
[White "Melikhov, Evgeny V."]
[Black "Becerra, Juan David"]
[WhiteFideId "4122046"]
[BlackFideId "4404998"]
[WhiteElo "2169"]
[BlackElo "2278"]
[Result "0-1"]
[Round "07"]
[TimeControl "180+1"]
[Date "2022.10.19"]
[WhiteClock "0:00:01"]
[BlackClock "0:01:28"]

1. d4 {[%clk 0:02:58]}  d5 {[%clk 0:02:57]} 2. c4 {[%clk 0:02:58]}  e6 {[%clk 0:02:57]} 3. Nc3 {[%clk 0:02:58]}  c6 {[%clk 0:02:57]} 4. e3 {[%clk 0:02:58]}  Nf6 {[%clk 0:02:58]} 5. Nf3 {[%clk 0:02:57]}  Nbd7 {[%clk 0:02:58]} 6. Bd3 {[%clk 0:02:57]}  dxc4 {[%clk 0:02:59]} 7. Bxc4 {[%clk 0:02:58]}  Bd6 {[%clk 0:02:59]} 8. O-O {[%clk 0:02:57]}  O-O {[%clk 0:02:59]} 9. e4 {[%clk 0:02:57]}  e5 {[%clk 0:02:59]} 10. Bg5 {[%clk 0:02:57]}  h6 {[%clk 0:02:58]} 11. Bh4 {[%clk 0:02:55]}  exd4 {[%clk 0:02:58]} 12. Nxd4 {[%clk 0:02:51]}  Re8 {[%clk 0:02:56]} 13. Nf5 {[%clk 0:02:44]}  Bf8 {[%clk 0:02:51]} 14. Re1 {[%clk 0:02:26]}  Qa5 {[%clk 0:02:47]} 15. Nd6 {[%clk 0:02:07]}  Bxd6 {[%clk 0:02:46]} 16. Qxd6 {[%clk 0:02:07]}  Qe5 {[%clk 0:02:46]} 17. Qxe5 {[%clk 0:02:03]}  Nxe5 {[%clk 0:02:47]} 18. Bb3 {[%clk 0:01:52]}  Nfd7 {[%clk 0:02:38]} 19. Rad1 {[%clk 0:01:49]}  Nc5 {[%clk 0:02:37]} 20. f4 {[%clk 0:01:33]}  Ned3 {[%clk 0:02:37]} 21. Rf1 {[%clk 0:01:20]}  Nxb2 {[%clk 0:02:34]} 22. Rd2 {[%clk 0:01:11]}  Nbd3 {[%clk 0:02:26]} 23. e5 {[%clk 0:01:09]}  Bf5 {[%clk 0:02:23]} 24. Bc2 {[%clk 0:01:00]}  Bh7 {[%clk 0:02:20]} 25. Na4 {[%clk 0:00:39]}  Nxa4 {[%clk 0:02:18]} 26. Bxd3 {[%clk 0:00:38]}  Bxd3 {[%clk 0:02:15]} 27. Rxd3 {[%clk 0:00:38]}  Nc5 {[%clk 0:02:16]} 28. Rd4 {[%clk 0:00:30]}  a5 {[%clk 0:01:54]} 29. Rc1 {[%clk 0:00:28]}  Ne6 {[%clk 0:01:53]} 30. Rd7 {[%clk 0:00:27]}  Nxf4 {[%clk 0:01:53]} 31. Rc4 {[%clk 0:00:21]}  Ng6 {[%clk 0:01:48]} 32. Bg3 {[%clk 0:00:21]}  b5 {[%clk 0:01:48]} 33. Rxc6 {[%clk 0:00:21]}  Nxe5 {[%clk 0:01:48]} 34. Bxe5 {[%clk 0:00:20]}  Rxe5 {[%clk 0:01:49]} 35. Rcc7 {[%clk 0:00:20]}  Rf5 {[%clk 0:01:49]} 36. g4 {[%clk 0:00:18]}  Rf6 {[%clk 0:01:49]} 37. Kg2 {[%clk 0:00:17]}  Rf8 {[%clk 0:01:49]} 38. Kg3 {[%clk 0:00:16]}  Re8 {[%clk 0:01:49]} 39. Rb7 {[%clk 0:00:14]}  Re3+ {[%clk 0:01:48]} 40. Kg2 {[%clk 0:00:14]}  b4 {[%clk 0:01:49]} 41. h4 {[%clk 0:00:07]}  Re2+ {[%clk 0:01:47]} 42. Kg3 {[%clk 0:00:07]}  Re3+ {[%clk 0:01:43]} 43. Kg2 {[%clk 0:00:07]}  Re4 {[%clk 0:01:43]} 44. Kg3 {[%clk 0:00:07]}  g5 {[%clk 0:01:36]} 45. h5 {[%clk 0:00:07]}  Re3+ {[%clk 0:01:36]} 46. Kg2 {[%clk 0:00:07]}  Rf4 {[%clk 0:01:37]} 47. Rb8+ {[%clk 0:00:06]}  Kg7 {[%clk 0:01:36]} 48. Rdd8 {[%clk 0:00:06]}  Re2+ {[%clk 0:01:36]} 49. Kg3 {[%clk 0:00:07]}  Rfe4 {[%clk 0:01:28]} 50. Rg8+ {[%clk 0:00:06]}  Kf6 {[%clk 0:01:27]} 51. Rb6+ {[%clk 0:00:06]}  Re6 {[%clk 0:01:27]} 52. Rxe6+ {[%clk 0:00:04]}  Rxe6 {[%clk 0:01:28]} 53. Ra8 {[%clk 0:00:03]}  Re3+ {[%clk 0:01:27]} 54. Kg2 {[%clk 0:00:03]}  Ra3 {[%clk 0:01:28]} 55. Ra6+ {[%clk 0:00:01]}  Kg7 {[%clk 0:01:28]} 0-1


[Site "https://www.chess.com"]

[Event "Titled Tuesday Blitz October 18 Late 2022"]
[White "Nakamura, Hikaru"]
[Black "Firouzja, Alireza"]
[WhiteFideId "2016192"]
[BlackFideId "12573981"]
[WhiteElo "2909"]
[BlackElo "2903"]
[Result "1/2-1/2"]
[Round "07"]
[TimeControl "180+1"]
[Date "2022.10.18"]
[WhiteClock "0:02:19"]
[BlackClock "0:02:16"]

1. g4 {[%clk 0:03:00]}  d5 {[%clk 0:02:57]} 2. Bg2 {[%clk 0:03:00]}  c6 {[%clk 0:02:57]} 3. h3 {[%clk 0:03:00]}  e5 {[%clk 0:02:57]} 4. d3 {[%clk 0:03:00]}  Bd6 {[%clk 0:02:57]} 5. Nd2 {[%clk 0:02:57]}  Ne7 {[%clk 0:02:56]} 6. e4 {[%clk 0:02:53]}  Ng6 {[%clk 0:02:51]} 7. Ndf3 {[%clk 0:02:51]}  O-O {[%clk 0:02:31]} 8. Ne2 {[%clk 0:02:51]}  dxe4 {[%clk 0:02:16]} 9. dxe4 {[%clk 0:02:51]}  Bb4+ {[%clk 0:02:17]} 10. Bd2 {[%clk 0:02:19]}  Bxd2+ {[%clk 0:02:16]} 11. Qxd2 {[%clk 0:02:19]} 1/2-1/2


[Site "https://www.chess.com"]